[Event "*** Titled Tuesday Blitz"]
[Site "Chess.com"]
[Date "2020.05.05"]
[Round "5"]
[White "Mischuk_D"]
[Black "kikydu96"]
[Result "1-0"]
[WhiteElo "2614"]
[BlackElo "2359"]
[TimeControl "180+1"]
[EndTime "10:56:33 PDT"]
[Termination "Mischuk_D won on time"]

1. e4 {[%clk 0:03:00.9]} 1... e5 {[%clk 0:02:54.7]} 2. Nf3 {[%clk 0:03:00.3]}
2... Nc6 {[%clk 0:02:51.9]} 3. Bb5 {[%clk 0:02:59.8]} 3... Nf6 {[%clk
0:02:48.6]} 4. O-O {[%clk 0:02:58.1]} 4... Nxe4 {[%clk 0:02:47.9]} 5. d4 {[%clk
0:02:57.9]} 5... Nd6 {[%clk 0:02:47.8]} 6. Bxc6 {[%clk 0:02:54.9]} 6... dxc6
{[%clk 0:02:48.7]} 7. dxe5 {[%clk 0:02:55.6]} 7... Nf5 {[%clk 0:02:49.1]} 8.
Qxd8+ {[%clk 0:02:56.5]} 8... Kxd8 {[%clk 0:02:49.7]} 9. h3 {[%clk 0:02:57.2]}
9... Be7 {[%clk 0:02:48.5]} 10. g4 {[%clk 0:02:54.8]} 10... Nh4 {[%clk
0:02:47.5]} 11. Nxh4 {[%clk 0:02:53.2]} 11... Bxh4 {[%clk 0:02:48.4]} 12. Nd2
{[%clk 0:02:53.6]} 12... Re8 {[%clk 0:02:44]} 13. f4 {[%clk 0:02:51.6]} 13... h5
{[%clk 0:02:44.2]} 14. Nf3 {[%clk 0:02:51.1]} 14... Be7 {[%clk 0:02:43]} 15. f5
{[%clk 0:02:50.3]} 15... hxg4 {[%clk 0:02:42.1]} 16. hxg4 {[%clk 0:02:49.6]}
16... g6 {[%clk 0:02:37]} 17. Rd1+ {[%clk 0:02:48.4]} 17... Bd7 {[%clk
0:02:31.6]} 18. fxg6 {[%clk 0:02:37.7]} 18... fxg6 {[%clk 0:02:26.6]} 19. e6
{[%clk 0:02:36.6]} 19... Bc5+ {[%clk 0:02:25.6]} 20. Kg2 {[%clk 0:02:34.2]}
20... Rxe6 {[%clk 0:02:25.5]} 21. Bf4 {[%clk 0:02:14.4]} 21... Re2+ {[%clk
0:02:22.6]} 22. Kg3 {[%clk 0:02:14.1]} 22... Kc8 {[%clk 0:02:01]} 23. Rd2 {[%clk
0:02:11.4]} 23... Rxd2 {[%clk 0:01:58.7]} 24. Nxd2 {[%clk 0:02:09.6]} 24... Bd6
{[%clk 0:01:51.7]} 25. Rh1 {[%clk 0:02:07.7]} 25... b6 {[%clk 0:01:50.6]} 26.
Rh6 {[%clk 0:02:02.5]} 26... Bxf4+ {[%clk 0:01:28.3]} 27. Kxf4 {[%clk
0:02:02.4]} 27... Kb8 {[%clk 0:01:28.2]} 28. Rxg6 {[%clk 0:02:01.6]} 28... Kb7
{[%clk 0:01:28.7]} 29. Rg7 {[%clk 0:01:58.6]} 29... Rf8+ {[%clk 0:01:28.1]} 30.
Kg3 {[%clk 0:01:57.8]} 30... Be6 {[%clk 0:01:26.8]} 31. b3 {[%clk 0:01:57.8]}
31... c5 {[%clk 0:01:22.7]} 32. g5 {[%clk 0:01:55.8]} 32... Bd5 {[%clk
0:01:20.7]} 33. c4 {[%clk 0:01:53.8]} 33... Bc6 {[%clk 0:01:20.1]} 34. g6 {[%clk
0:01:47]} 34... Rd8 {[%clk 0:01:18.6]} 35. Nf1 {[%clk 0:01:46.9]} 35... Rd1
{[%clk 0:01:15.6]} 36. Ne3 {[%clk 0:01:45.9]} 36... Rd3 {[%clk 0:01:12.3]} 37.
Kf4 {[%clk 0:01:45.6]} 37... Rd4+ {[%clk 0:01:12.1]} 38. Kg5 {[%clk 0:01:45.7]}
38... Rd2 {[%clk 0:01:08.6]} 39. Re7 {[%clk 0:01:42.3]} 39... Rd8 {[%clk
0:00:07.2]} 40. g7 {[%clk 0:01:40.6]} 40... Bf3 {[%clk 0:00:05.9]} 41. Nf5
{[%clk 0:01:39.3]} 41... Bd1 {[%clk 0:00:03.4]} 42. Nh6 {[%clk 0:01:37.8]} 42...
a5 {[%clk 0:00:02.1]} 43. g8=Q {[%clk 0:01:37.6]} 43... Rxg8+ {[%clk 0:00:02.7]}
44. Nxg8 {[%clk 0:01:38.4]} 44... a4 {[%clk 0:00:03.3]} 45. Re3 {[%clk 0:01:37]}
45... axb3 {[%clk 0:00:02.8]} 46. axb3 {[%clk 0:01:36.7]} 46... Ka6 {[%clk
0:00:03.7]} 47. Ne7 {[%clk 0:01:34.1]} 47... b5 {[%clk 0:00:02.1]} 48. Kf4
{[%clk 0:01:30]} 48... Ka5 {[%clk 0:00:01.7]} 49. Nc6+ {[%clk 0:01:27.8]} 49...
Kb6 {[%clk 0:00:02.1]} 50. Ne5 {[%clk 0:01:26.1]} 50... Ka5 {[%clk 0:00:01.3]}
51. Ke4 {[%clk 0:01:23.8]} 1-0

[Event "*** Titled Tuesday Blitz"]
[Site "Chess.com"]
[Date "2020.05.05"]
[Round "5"]
[White "penguingm1"]
[Black "GMartin_Petrov"]
[Result "1-0"]
[WhiteElo "2825"]
[BlackElo "2608"]
[TimeControl "180+1"]
[EndTime "10:56:34 PDT"]
[Termination "penguingm1 won by checkmate"]

1. d4 {[%clk 0:03:00.9]} 1... Nf6 {[%clk 0:02:59.4]} 2. c4 {[%clk 0:03:00.8]}
2... e6 {[%clk 0:02:59.7]} 3. Nc3 {[%clk 0:03:01]} 3... Bb4 {[%clk 0:02:59]} 4.
Qc2 {[%clk 0:03:01.4]} 4... d5 {[%clk 0:02:57.8]} 5. cxd5 {[%clk 0:03:01.3]}
5... exd5 {[%clk 0:02:57.1]} 6. Bg5 {[%clk 0:03:01.7]} 6... h6 {[%clk
0:02:45.7]} 7. Bh4 {[%clk 0:03:01.6]} 7... g5 {[%clk 0:02:39.9]} 8. Bg3 {[%clk
0:03:01]} 8... Ne4 {[%clk 0:02:40.5]} 9. e3 {[%clk 0:03:00.5]} 9... h5 {[%clk
0:02:38.4]} 10. h4 {[%clk 0:02:16.5]} 10... Nxg3 {[%clk 0:02:35.3]} 11. fxg3
{[%clk 0:02:16.1]} 11... Qe7 {[%clk 0:02:25.9]} 12. Qf2 {[%clk 0:02:07.3]} 12...
Nc6 {[%clk 0:02:16.2]} 13. Bb5 {[%clk 0:01:58.5]} 13... Bd7 {[%clk 0:02:11]} 14.
Nf3 {[%clk 0:01:34.2]} 14... gxh4 {[%clk 0:01:54.6]} 15. Nxh4 {[%clk 0:01:17.7]}
15... O-O-O {[%clk 0:01:18.2]} 16. O-O {[%clk 0:01:11.1]} 16... Be6 {[%clk
0:00:57.1]} 17. Rac1 {[%clk 0:01:05.3]} 17... Rhg8 {[%clk 0:00:54.7]} 18. Ne2
{[%clk 0:00:56.3]} 18... Bd6 {[%clk 0:00:48.2]} 19. Bxc6 {[%clk 0:00:53.5]}
19... bxc6 {[%clk 0:00:46.1]} 20. Rxc6 {[%clk 0:00:54.1]} 20... Bxg3 {[%clk
0:00:40.9]} 21. Nxg3 {[%clk 0:00:46.2]} 21... Qxh4 {[%clk 0:00:40.5]} 22. Nf5
{[%clk 0:00:28.4]} 22... Qxf2+ {[%clk 0:00:33.1]} 23. Rxf2 {[%clk 0:00:29.3]}
23... Kd7 {[%clk 0:00:32.8]} 24. Ra6 {[%clk 0:00:24.2]} 24... Rg5 {[%clk
0:00:32]} 25. Nh4 {[%clk 0:00:22.8]} 25... Rdg8 {[%clk 0:00:30.4]} 26. Nf3
{[%clk 0:00:23]} 26... Rg3 {[%clk 0:00:28.4]} 27. Ne5+ {[%clk 0:00:20.7]} 27...
Ke7 {[%clk 0:00:24.7]} 28. Rxa7 {[%clk 0:00:21]} 28... Rxe3 {[%clk 0:00:23.8]}
29. Rxc7+ {[%clk 0:00:20.7]} 29... Kd6 {[%clk 0:00:21.1]} 30. Rfc2 {[%clk
0:00:20.2]} 30... Re4 {[%clk 0:00:10.9]} 31. R2c6# {[%clk 0:00:19.8]} 1-0

[Event "*** Titled Tuesday Blitz"]
[Site "Chess.com"]
[Date "2020.05.05"]
[Round "5"]
[White "mirceaparligras"]
[Black "Bodnar_Mykola"]
[Result "0-1"]
[WhiteElo "2626"]
[BlackElo "2442"]
[TimeControl "180+1"]
[EndTime "10:56:34 PDT"]
[Termination "Bodnar_Mykola won by resignation"]

1. d4 {[%clk 0:03:00.9]} 1... Nf6 {[%clk 0:02:57.2]} 2. Bf4 {[%clk 0:02:59.9]}
2... d5 {[%clk 0:02:55.5]} 3. e3 {[%clk 0:02:59.6]} 3... c5 {[%clk 0:02:55]} 4.
Nf3 {[%clk 0:02:59]} 4... e6 {[%clk 0:02:54.3]} 5. Nbd2 {[%clk 0:02:55.4]} 5...
Bd6 {[%clk 0:02:53.4]} 6. Bg3 {[%clk 0:02:53.6]} 6... Qc7 {[%clk 0:02:50.9]} 7.
c3 {[%clk 0:02:48.4]} 7... b6 {[%clk 0:02:50.3]} 8. Bd3 {[%clk 0:02:42.3]} 8...
Nbd7 {[%clk 0:02:49.9]} 9. O-O {[%clk 0:02:41.5]} 9... Bxg3 {[%clk 0:02:48.6]}
10. hxg3 {[%clk 0:02:39.9]} 10... O-O {[%clk 0:02:49]} 11. Qe2 {[%clk
0:02:27.1]} 11... e5 {[%clk 0:02:48.5]} 12. e4 {[%clk 0:02:18]} 12... Bb7 {[%clk
0:02:32.1]} 13. exd5 {[%clk 0:02:12.5]} 13... exd4 {[%clk 0:02:25.5]} 14. c4
{[%clk 0:02:05.9]} 14... Rfe8 {[%clk 0:02:23.7]} 15. Qd1 {[%clk 0:02:05.8]}
15... Ne5 {[%clk 0:02:12.9]} 16. Qc2 {[%clk 0:01:50.6]} 16... Nxd3 {[%clk
0:02:06]} 17. Qxd3 {[%clk 0:01:51.5]} 17... Bc8 {[%clk 0:02:01.3]} 18. Rfe1
{[%clk 0:01:48.6]} 18... Bg4 {[%clk 0:01:59.5]} 19. Ne4 {[%clk 0:01:17]} 19...
Nxe4 {[%clk 0:01:56.9]} 20. Rxe4 {[%clk 0:01:16.7]} 20... Rxe4 {[%clk
0:01:50.3]} 21. Qxe4 {[%clk 0:01:16.2]} 21... Bxf3 {[%clk 0:01:39]} 22. gxf3
{[%clk 0:01:16]} 22... Rd8 {[%clk 0:01:37.6]} 23. Re1 {[%clk 0:01:15.1]} 23...
g6 {[%clk 0:01:33.6]} 24. Qe7 {[%clk 0:01:06.9]} 24... Qd7 {[%clk 0:01:00]} 25.
Qxd7 {[%clk 0:00:48.6]} 25... Rxd7 {[%clk 0:00:59.3]} 26. Re8+ {[%clk
0:00:49.3]} 26... Kg7 {[%clk 0:00:58.8]} 27. Kf1 {[%clk 0:00:49.9]} 27... Kf6
{[%clk 0:00:56.4]} 28. f4 {[%clk 0:00:46]} 28... Re7 {[%clk 0:00:54.2]} 29. Rxe7
{[%clk 0:00:31.8]} 29... Kxe7 {[%clk 0:00:53.7]} 30. Ke2 {[%clk 0:00:31.4]}
30... Kf6 {[%clk 0:00:52.7]} 31. a3 {[%clk 0:00:27.7]} 31... Kf5 {[%clk
0:00:51.3]} 32. f3 {[%clk 0:00:24.3]} 32... h5 {[%clk 0:00:51.2]} 33. b4 {[%clk
0:00:23]} 33... Kf6 {[%clk 0:00:47.7]} 34. b5 {[%clk 0:00:20.6]} 34... Ke7
{[%clk 0:00:47.6]} 35. Kd3 {[%clk 0:00:19]} 35... f6 {[%clk 0:00:47.8]} 36. Ke2
{[%clk 0:00:18.1]} 36... g5 {[%clk 0:00:44.8]} 37. fxg5 {[%clk 0:00:18.4]} 37...
fxg5 {[%clk 0:00:44.4]} 38. Kf2 {[%clk 0:00:18]} 38... h4 {[%clk 0:00:43.9]} 39.
gxh4 {[%clk 0:00:17.2]} 39... gxh4 {[%clk 0:00:43.5]} 40. f4 {[%clk 0:00:18.1]}
40... h3 {[%clk 0:00:43.5]} 41. Kg3 {[%clk 0:00:18.5]} 41... d3 {[%clk
0:00:43.1]} 0-1

[Event "*** Titled Tuesday Blitz"]
[Site "Chess.com"]
[Date "2020.05.05"]
[Round "5"]
[White "Barbus89"]
[Black "yandry1996"]
[Result "1-0"]
[WhiteElo "2341"]
[BlackElo "2168"]
[TimeControl "180+1"]
[EndTime "10:56:35 PDT"]
[Termination "Barbus89 won by resignation"]

1. d4 {[%clk 0:03:00.9]} 1... d5 {[%clk 0:02:59.3]} 2. c4 {[%clk 0:02:54.8]}
2... e6 {[%clk 0:02:57.8]} 3. Nf3 {[%clk 0:02:54.6]} 3... c6 {[%clk 0:02:55.4]}
4. g3 {[%clk 0:02:55.5]} 4... dxc4 {[%clk 0:02:55.1]} 5. Bg2 {[%clk 0:02:53.1]}
5... b5 {[%clk 0:02:51.2]} 6. O-O {[%clk 0:02:52.2]} 6... Bb7 {[%clk 0:02:50.3]}
7. b3 {[%clk 0:02:52.4]} 7... cxb3 {[%clk 0:02:48.8]} 8. Qxb3 {[%clk 0:02:53.3]}
8... Nf6 {[%clk 0:02:47.2]} 9. Ne5 {[%clk 0:02:52.9]} 9... Qxd4 {[%clk
0:02:07.2]} 10. Bb2 {[%clk 0:02:51.8]} 10... Qb6 {[%clk 0:02:07.6]} 11. Bh3
{[%clk 0:02:16.7]} 11... c5 {[%clk 0:01:56.6]} 12. Na3 {[%clk 0:02:03]} 12... a6
{[%clk 0:01:43]} 13. Nxf7 {[%clk 0:01:23.3]} 13... Kxf7 {[%clk 0:01:40.1]} 14.
Nc4 {[%clk 0:01:22.6]} 14... Qc7 {[%clk 0:00:54.7]} 15. Ne5+ {[%clk 0:01:09.3]}
15... Ke8 {[%clk 0:00:49.8]} 16. Qxe6+ {[%clk 0:00:55.5]} 16... Be7 {[%clk
0:00:45.7]} 17. Qf7+ {[%clk 0:00:39.5]} 17... Kd8 {[%clk 0:00:43.5]} 18. Rad1+
{[%clk 0:00:36.5]} 18... Nbd7 {[%clk 0:00:42.6]} 19. Qe6 {[%clk 0:00:22.4]}
19... Bc8 {[%clk 0:00:24.2]} 20. Nf7+ {[%clk 0:00:15.1]} 20... Ke8 {[%clk
0:00:24.5]} 21. Nd6+ {[%clk 0:00:15.2]} 21... Kd8 {[%clk 0:00:21]} 22. Bxf6
{[%clk 0:00:14.8]} 22... Nxf6 {[%clk 0:00:10.6]} 23. Nxb5+ {[%clk 0:00:08.2]}
1-0

[Event "*** Titled Tuesday Blitz"]
[Site "Chess.com"]
[Date "2020.05.05"]
[Round "5"]
[White "Caterpiller35"]
[Black "leopato"]
[Result "0-1"]
[WhiteElo "2284"]
[BlackElo "2086"]
[TimeControl "180+1"]
[EndTime "10:56:36 PDT"]
[Termination "leopato won by resignation"]

1. d4 {[%clk 0:03:00]} 1... Nf6 {[%clk 0:02:47.2]} 2. Bg5 {[%clk 0:02:59.7]}
2... Ne4 {[%clk 0:02:46.3]} 3. Bf4 {[%clk 0:02:55.1]} 3... c5 {[%clk 0:02:40.9]}
4. f3 {[%clk 0:02:55.1]} 4... Qa5+ {[%clk 0:02:35.7]} 5. c3 {[%clk 0:02:54.9]}
5... Nf6 {[%clk 0:02:35.4]} 6. Nd2 {[%clk 0:02:53.5]} 6... cxd4 {[%clk
0:02:31.7]} 7. Nb3 {[%clk 0:02:53.4]} 7... Qb6 {[%clk 0:02:30.3]} 8. Qxd4 {[%clk
0:02:53.1]} 8... Qxd4 {[%clk 0:02:26.6]} 9. cxd4 {[%clk 0:02:53]} 9... Nc6
{[%clk 0:02:23.6]} 10. e4 {[%clk 0:02:50.3]} 10... d5 {[%clk 0:02:21.3]} 11. e5
{[%clk 0:02:50.3]} 11... Nd7 {[%clk 0:02:18.7]} 12. Be3 {[%clk 0:02:50.1]} 12...
Nb6 {[%clk 0:02:16.6]} 13. Rc1 {[%clk 0:02:48.7]} 13... Bd7 {[%clk 0:02:11.4]}
14. Nc5 {[%clk 0:02:44.7]} 14... Rb8 {[%clk 0:02:07]} 15. Nxd7 {[%clk 0:02:33]}
15... Kxd7 {[%clk 0:02:02.5]} 16. f4 {[%clk 0:02:32.7]} 16... e6 {[%clk
0:02:01.4]} 17. Nf3 {[%clk 0:02:32]} 17... Be7 {[%clk 0:02:00]} 18. Kf2 {[%clk
0:02:31.4]} 18... Rhc8 {[%clk 0:01:59.2]} 19. Bd3 {[%clk 0:02:24.6]} 19... a6
{[%clk 0:01:55.4]} 20. g4 {[%clk 0:02:23.2]} 20... Nb4 {[%clk 0:01:53.4]} 21.
Bb1 {[%clk 0:02:19]} 21... Nc4 {[%clk 0:01:52]} 22. a3 {[%clk 0:02:12.4]} 22...
Nc6 {[%clk 0:01:46.9]} 23. Bxh7 {[%clk 0:02:08.8]} 23... g6 {[%clk 0:01:45.8]}
24. f5 {[%clk 0:02:08.2]} 24... gxf5 {[%clk 0:01:16.4]} 25. gxf5 {[%clk
0:02:07.9]} 25... Rh8 {[%clk 0:01:14.5]} 26. fxe6+ {[%clk 0:02:03]} 26... fxe6
{[%clk 0:01:14.2]} 27. Bd3 {[%clk 0:02:03.5]} 27... b5 {[%clk 0:01:10.9]} 28.
Rhg1 {[%clk 0:01:59.5]} 28... Nxb2 {[%clk 0:01:07.3]} 29. Bb1 {[%clk 0:01:52.5]}
29... Rbf8 {[%clk 0:01:02.2]} 30. Rg7 {[%clk 0:01:52.1]} 30... Nc4 {[%clk
0:00:59.7]} 31. Bd3 {[%clk 0:01:32.5]} 31... Rxh2+ {[%clk 0:00:56.4]} 32. Kg3
{[%clk 0:01:28.2]} 32... Rhh8 {[%clk 0:00:42.9]} 33. Bxc4 {[%clk 0:01:23.4]}
33... bxc4 {[%clk 0:00:42.7]} 34. Rb1 {[%clk 0:01:17.4]} 34... Rhg8 {[%clk
0:00:34.1]} 35. Rb7+ {[%clk 0:01:14.9]} 35... Kc8 {[%clk 0:00:30]} 0-1

[Event "*** Titled Tuesday Blitz"]
[Site "Chess.com"]
[Date "2020.05.05"]
[Round "5"]
[White "Pomegranate988"]
[Black "PetrolulSah"]
[Result "1-0"]
[WhiteElo "2473"]
[BlackElo "2271"]
[TimeControl "180+1"]
[EndTime "10:56:39 PDT"]
[Termination "Pomegranate988 won by resignation"]

1. d4 {[%clk 0:03:00.9]} 1... d5 {[%clk 0:02:58.2]} 2. c4 {[%clk 0:03:00.7]}
2... c6 {[%clk 0:02:58.1]} 3. Nf3 {[%clk 0:03:00.5]} 3... Nf6 {[%clk 0:02:57.2]}
4. Nc3 {[%clk 0:03:00.6]} 4... dxc4 {[%clk 0:02:56.7]} 5. e4 {[%clk 0:02:59.6]}
5... b5 {[%clk 0:02:55.6]} 6. Be2 {[%clk 0:02:57.5]} 6... b4 {[%clk 0:02:54.3]}
7. Na4 {[%clk 0:02:56.8]} 7... Nxe4 {[%clk 0:02:53]} 8. Bxc4 {[%clk 0:02:56.9]}
8... e6 {[%clk 0:02:51.1]} 9. O-O {[%clk 0:02:55.6]} 9... Be7 {[%clk 0:02:50.3]}
10. Re1 {[%clk 0:02:54.1]} 10... Nf6 {[%clk 0:02:50.1]} 11. Bg5 {[%clk
0:02:50.9]} 11... O-O {[%clk 0:02:49.7]} 12. Ne5 {[%clk 0:02:44.1]} 12... Bb7
{[%clk 0:02:47]} 13. Rc1 {[%clk 0:02:38.1]} 13... Nbd7 {[%clk 0:02:46.5]} 14.
Bb3 {[%clk 0:02:19.9]} 14... Nxe5 {[%clk 0:02:39.9]} 15. Rxe5 {[%clk 0:02:11]}
15... Nd7 {[%clk 0:02:33.9]} 16. Bxe7 {[%clk 0:02:08.9]} 16... Qxe7 {[%clk
0:02:34.5]} 17. Rh5 {[%clk 0:02:08.5]} 17... g6 {[%clk 0:02:30.6]} 18. Rh3
{[%clk 0:01:59.2]} 18... Rac8 {[%clk 0:02:24.8]} 19. Qd2 {[%clk 0:01:52.3]}
19... c5 {[%clk 0:01:38.6]} 20. Qh6 {[%clk 0:01:47.2]} 20... f6 {[%clk
0:01:38.6]} 21. Nxc5 {[%clk 0:01:33.2]} 21... Nxc5 {[%clk 0:01:34.6]} 22. dxc5
{[%clk 0:01:32.9]} 22... Bd5 {[%clk 0:01:23.5]} 23. Bxd5 {[%clk 0:01:21.6]}
23... exd5 {[%clk 0:01:21.9]} 24. Re3 {[%clk 0:01:18]} 24... Qd7 {[%clk
0:01:13.4]} 25. Rd3 {[%clk 0:01:14.2]} 25... Rfe8 {[%clk 0:01:09.8]} 26. Qd2
{[%clk 0:01:09.4]} 26... Re5 {[%clk 0:00:50.9]} 27. Qxb4 {[%clk 0:01:08.1]}
27... Re2 {[%clk 0:00:37]} 28. Qd4 {[%clk 0:01:01.8]} 28... Rce8 {[%clk
0:00:29.4]} 29. h3 {[%clk 0:00:53.2]} 29... Re1+ {[%clk 0:00:26.9]} 30. Rxe1
{[%clk 0:00:52.6]} 30... Rxe1+ {[%clk 0:00:27.7]} 31. Kh2 {[%clk 0:00:53]} 31...
Qc7+ {[%clk 0:00:27.4]} 32. g3 {[%clk 0:00:53.1]} 32... Re5 {[%clk 0:00:25.7]}
33. b4 {[%clk 0:00:51.3]} 33... Kg7 {[%clk 0:00:23.6]} 34. b5 {[%clk 0:00:48.1]}
34... Re2 {[%clk 0:00:21.8]} 35. a4 {[%clk 0:00:45.6]} 35... Rc2 {[%clk
0:00:21]} 36. c6 {[%clk 0:00:45]} 36... Qe7 {[%clk 0:00:20.3]} 37. Rf3 {[%clk
0:00:42.3]} 37... Qe6 {[%clk 0:00:17.7]} 38. Qxa7+ {[%clk 0:00:41.4]} 38... Kh6
{[%clk 0:00:16.7]} 39. Qe3+ {[%clk 0:00:40.9]} 39... Kg7 {[%clk 0:00:16.7]} 40.
Qxe6 {[%clk 0:00:39.9]} 1-0

[Event "*** Titled Tuesday Blitz"]
[Site "Chess.com"]
[Date "2020.05.05"]
[Round "5"]
[White "Ranindu2003"]
[Black "Eloist"]
[Result "1-0"]
[WhiteElo "2490"]
[BlackElo "2236"]
[TimeControl "180+1"]
[EndTime "10:56:40 PDT"]
[Termination "Ranindu2003 won on time"]

1. e4 {[%clk 0:02:59.2]} 1... e6 {[%clk 0:02:59.7]} 2. d4 {[%clk 0:02:58.7]}
2... d5 {[%clk 0:02:59]} 3. Nd2 {[%clk 0:02:58.9]} 3... Nf6 {[%clk 0:02:58.8]}
4. e5 {[%clk 0:02:58.6]} 4... Nfd7 {[%clk 0:02:58.7]} 5. Bd3 {[%clk 0:02:59.2]}
5... c5 {[%clk 0:02:58.8]} 6. c3 {[%clk 0:02:59.8]} 6... b6 {[%clk 0:02:58.5]}
7. Ngf3 {[%clk 0:03:00.4]} 7... Ba6 {[%clk 0:02:57.7]} 8. Bxa6 {[%clk 0:02:59]}
8... Nxa6 {[%clk 0:02:56.7]} 9. O-O {[%clk 0:02:58.6]} 9... b5 {[%clk
0:02:54.6]} 10. Qe2 {[%clk 0:02:57.1]} 10... Qb6 {[%clk 0:02:53]} 11. dxc5
{[%clk 0:02:46.7]} 11... Naxc5 {[%clk 0:02:47.1]} 12. Nb3 {[%clk 0:02:45.2]}
12... Nxb3 {[%clk 0:02:26.9]} 13. axb3 {[%clk 0:02:46.1]} 13... Be7 {[%clk
0:02:23.7]} 14. Be3 {[%clk 0:02:38.5]} 14... Bc5 {[%clk 0:02:04.2]} 15. Bxc5
{[%clk 0:02:33.1]} 15... Nxc5 {[%clk 0:01:57.8]} 16. Nd4 {[%clk 0:02:29.4]}
16... Rb8 {[%clk 0:01:37.7]} 17. b4 {[%clk 0:02:29]} 17... Nd7 {[%clk
0:01:27.9]} 18. Ra5 {[%clk 0:02:25.3]} 18... a6 {[%clk 0:01:06.8]} 19. Rfa1
{[%clk 0:02:24.5]} 19... Qc7 {[%clk 0:00:51.9]} 20. f4 {[%clk 0:02:10.1]} 20...
O-O {[%clk 0:00:46.2]} 21. Rxa6 {[%clk 0:02:08.8]} 21... Nb6 {[%clk 0:00:37.9]}
22. Nxb5 {[%clk 0:01:42.6]} 22... Qc4 {[%clk 0:00:36.5]} 23. Qxc4 {[%clk
0:01:42.4]} 23... Nxc4 {[%clk 0:00:37.4]} 24. Nd6 {[%clk 0:01:42.1]} 24... Nxb2
{[%clk 0:00:32.4]} 25. Kf2 {[%clk 0:01:28.5]} 25... g5 {[%clk 0:00:21.5]} 26. g3
{[%clk 0:01:19.6]} 26... f6 {[%clk 0:00:18.6]} 27. Ke3 {[%clk 0:01:17.6]} 27...
gxf4+ {[%clk 0:00:16.8]} 28. gxf4 {[%clk 0:01:16.8]} 28... fxe5 {[%clk
0:00:14.5]} 29. fxe5 {[%clk 0:01:17.7]} 29... Nc4+ {[%clk 0:00:09.6]} 30. Nxc4
{[%clk 0:01:17.1]} 30... dxc4 {[%clk 0:00:10.5]} 31. Rxe6 {[%clk 0:01:17.1]}
31... Rbd8 {[%clk 0:00:08.9]} 32. Rd6 {[%clk 0:01:13.1]} 32... Rfe8 {[%clk
0:00:06.9]} 33. Rxd8 {[%clk 0:01:11.5]} 33... Rxd8 {[%clk 0:00:07.8]} 34. Ke4
{[%clk 0:01:07.1]} 34... Rd3 {[%clk 0:00:07.5]} 35. Kf5 {[%clk 0:01:06.7]} 35...
Rxc3 {[%clk 0:00:06.7]} 36. Ra8+ {[%clk 0:01:06.5]} 36... Kf7 {[%clk 0:00:06.1]}
37. Ra7+ {[%clk 0:01:06.7]} 37... Ke8 {[%clk 0:00:04.6]} 38. Ke6 {[%clk
0:01:06.3]} 38... Kf8 {[%clk 0:00:01.7]} 39. Ra8+ {[%clk 0:01:04.7]} 39... Kg7
{[%clk 0:00:01.2]} 40. Ke7 {[%clk 0:01:05]} 1-0

[Event "*** Titled Tuesday Blitz"]
[Site "Chess.com"]
[Date "2020.05.05"]
[Round "5"]
[White "DenisQ"]
[Black "Beca95"]
[Result "0-1"]
[WhiteElo "2678"]
[BlackElo "2866"]
[TimeControl "180+1"]
[EndTime "10:56:41 PDT"]
[Termination "Beca95 won on time"]

1. Nf3 {[%clk 0:03:00.4]} 1... g6 {[%clk 0:02:57.5]} 2. c4 {[%clk 0:02:59.7]}
2... Bg7 {[%clk 0:02:57.5]} 3. g3 {[%clk 0:02:59.3]} 3... d6 {[%clk 0:02:57.8]}
4. Bg2 {[%clk 0:02:59.1]} 4... e5 {[%clk 0:02:58]} 5. O-O {[%clk 0:02:59.2]}
5... Nd7 {[%clk 0:02:58.3]} 6. Nc3 {[%clk 0:02:59.3]} 6... Nh6 {[%clk
0:02:57.8]} 7. d3 {[%clk 0:02:56.4]} 7... O-O {[%clk 0:02:56.1]} 8. Rb1 {[%clk
0:02:53.3]} 8... a5 {[%clk 0:02:24.8]} 9. a3 {[%clk 0:02:51.9]} 9... f5 {[%clk
0:02:18.6]} 10. Nd5 {[%clk 0:02:39.4]} 10... Nf7 {[%clk 0:02:14.9]} 11. Qc2
{[%clk 0:02:29.4]} 11... a4 {[%clk 0:02:12.1]} 12. Nc3 {[%clk 0:02:26.4]} 12...
Nc5 {[%clk 0:02:10.8]} 13. Be3 {[%clk 0:02:25.8]} 13... Bd7 {[%clk 0:02:10.7]}
14. Nd2 {[%clk 0:02:17.3]} 14... Ne6 {[%clk 0:01:43.1]} 15. f4 {[%clk
0:01:50.3]} 15... Nd4 {[%clk 0:01:16.1]} 16. Qd1 {[%clk 0:01:40.6]} 16... c6
{[%clk 0:01:12.2]} 17. Nxa4 {[%clk 0:01:24.8]} 17... exf4 {[%clk 0:01:08]} 18.
Bxf4 {[%clk 0:01:18.8]} 18... Nxe2+ {[%clk 0:01:07.2]} 19. Qxe2 {[%clk
0:01:18.5]} 19... Rxa4 {[%clk 0:01:06.6]} 20. Nf3 {[%clk 0:01:10.8]} 20... Ra8
{[%clk 0:01:04]} 21. Rbe1 {[%clk 0:01:09]} 21... Qb6+ {[%clk 0:01:01.4]} 22. d4
{[%clk 0:01:07.3]} 22... Rae8 {[%clk 0:00:56.8]} 23. Qf2 {[%clk 0:01:05.4]}
23... Qb3 {[%clk 0:00:55]} 24. Rc1 {[%clk 0:00:55.1]} 24... b5 {[%clk
0:00:45.1]} 25. Rc3 {[%clk 0:00:34.2]} 25... Qa4 {[%clk 0:00:44.7]} 26. b4
{[%clk 0:00:32.1]} 26... c5 {[%clk 0:00:39.3]} 27. Rcc1 {[%clk 0:00:15.4]} 27...
cxb4 {[%clk 0:00:33.5]} 28. axb4 {[%clk 0:00:15.3]} 28... bxc4 {[%clk
0:00:33.9]} 0-1